fUST/lending_fUST_20250307
["ID","MTS","AMOUNT","RATE_DAILY","PERIOD"]
[355592626,1741338646744,-500.0,0.00019178,2]
[355592627,1741338646754,-948.01,0.00019178,2]
[355592628,1741338646764,-500.0,0.00019178,2]
[355592629,1741338646773,-500.0,0.00019178,2]
[355592630,1741338646783,-500.0,0.00019178,2]
[355592631,1741338646794,-904.24,0.00019178,2]
[355592632,1741338646803,-585.09,0.00019178,2]
[355592633,1741338646812,-500.0,0.00019178,2]
[355592634,1741338646822,-651.11,0.00019178,2]
[355592635,1741338646832,-500.0,0.00019178,2]
[355592636,1741338646841,-500.0,0.00019178,2]
[355592637,1741338646851,-500.22,0.00019178,2]
[355592638,1741338646860,-1099.49,0.00019178,2]
[355592639,1741338646869,-1296.35,0.00019178,2]
[355592640,1741338646882,-842.97,0.00019178,2]
[355592641,1741338646893,-842.02,0.00019178,2]
[355592642,1741338646901,-842.63,0.00019178,2]
[355592643,1741338646910,-500.0,0.00019178,2]
[355592644,1741338646919,-500.0,0.00019178,2]
[355592645,1741338646930,-1190.05,0.00019178,2]
[355592646,1741338646939,-500.0,0.00019178,2]
[355592647,1741338646948,-1720.74,0.00019178,2]
[355592648,1741338646959,-691.78,0.00019178,2]
[355592649,1741338646975,-569.11,0.00019178,2]
[355592650,1741338646985,-500.0,0.00019178,2]
[355592651,1741338646995,-608.33,0.00019178,2]
[355592652,1741338647004,-500.0,0.00019178,2]
[355592653,1741338647018,-500.0,0.00019178,2]
[355592654,1741338647031,-501.73,0.00019178,2]
[355592655,1741338647044,-1485.65,0.00019178,2]
[355592656,1741338647056,-500.0,0.00019178,2]
[355592657,1741338647069,-500.0,0.00019178,2]
[355592658,1741338647081,-1692.08,0.00019178,2]
[355592659,1741338647092,-1739.97,0.00019178,2]
[355592660,1741338647103,-1640.8,0.00019178,2]
[355592661,1741338647115,-500.0,0.00019178,2]
[355592662,1741338647127,-500.0,0.00019178,2]
[355592663,1741338647139,-2091.49,0.00019178,2]
[355592664,1741338647151,-500.0,0.00019178,2]
[355592665,1741338647163,-754.0,0.00019178,2]
[355592666,1741338647175,-1886.64,0.00019178,2]
[355592667,1741338647186,-500.0,0.00019178,2]
[355592668,1741338647199,-500.0,0.00019178,2]
[355592669,1741338647212,-887.79,0.00019178,2]
[355592670,1741338647224,-1474.02,0.00019178,2]
[355592671,1741338647238,-500.0,0.00019178,2]
[355592672,1741338647250,-500.0,0.00019178,2]
[355592673,1741338647263,-2724.28,0.00019178,2]
[355592674,1741338647275,-500.0,0.00019178,2]
[355592675,1741338647287,-583.6,0.00019178,2]
[355592676,1741338647297,-638.92,0.00019178,2]
[355592677,1741338647308,-747.7,0.00019178,2]
[355592678,1741338647320,-1369.2,0.00019178,2]
[355592679,1741338647331,-7986.11,0.00019178,2]
[355592680,1741338647341,-1443.03,0.00019178,2]
[355592681,1741338647352,-831.12,0.00019178,2]
[355592682,1741338647363,-1275.04,0.00019178,2]
[355592683,1741338647375,-500.0,0.00019178,2]
[355592684,1741338647387,-500.0,0.00019178,2]
[355592685,1741338647398,-354.33971877,0.00019178,2]
[355592686,1741338647410,-500.0,0.00019178,2]
[355592687,1741338647421,-6708.29,0.00019178,2]
[355592688,1741338647431,-500.0,0.00019178,2]
[355592689,1741338647440,-943.43,0.00019178,2]
[355592690,1741338647450,-500.0,0.00019178,2]
[355592691,1741338647462,-500.0,0.00019178,2]
[355592692,1741338647473,-9279.84,0.00019178,2]
[355592693,1741338647482,-701.42,0.00019178,2]
[355592694,1741338647495,-636.98,0.00019178,2]
[355592695,1741338647506,-500.0,0.00019178,2]
[355592696,1741338647517,-500.0,0.00019178,2]
[355592697,1741338647529,-500.0,0.00019178,2]
[355592698,1741338647541,-2577.65,0.00019178,2]
[355592699,1741338647552,-5180.39,0.00019178,2]
[355592700,1741338647564,-741.19,0.00019178,2]
[355592701,1741338647576,-500.0,0.00019178,2]
[355592702,1741338647587,-500.0,0.00019178,2]
[355592703,1741338647599,-500.0,0.00019178,2]
[355592704,1741338647610,-500.0,0.00019178,2]
[355592705,1741338647622,-957.66,0.00019178,2]
[355592706,1741338647634,-4320.61,0.00019178,2]
[355592707,1741338647644,-1419.15,0.00019178,2]
[355592708,1741338647655,-500.0,0.00019178,2]
[355592709,1741338647665,-500.0,0.00019178,2]
[355592710,1741338647675,-740.82,0.00019178,2]
[355592711,1741338647685,-2825.55,0.00019178,2]
[355592712,1741338647696,-679.73,0.00019178,2]
[355592713,1741338647706,-500.0,0.00019178,2]
[355592714,1741338647717,-1234.88,0.00019178,2]
[355592715,1741338647729,-500.0,0.00019178,2]
[355592716,1741338647742,-574.62,0.00019178,2]
[355592717,1741338647753,-723.92,0.00019178,2]
[355592718,1741338647762,-500.0,0.00019178,2]
[355592719,1741338647772,-2673.25,0.00019178,2]
[355592720,1741338647784,-1502.21,0.00019178,2]
[355592721,1741338647794,-500.0,0.00019178,2]
[355592722,1741338647805,-1121.85,0.00019178,2]
[355592723,1741338647816,-500.0,0.00019178,2]
[355592724,1741338647828,-500.0,0.00019178,2]
[355592725,1741338647840,-1012.32,0.00019178,7]
[355592726,1741338647851,-1193.51,0.00019178,2]
[355592727,1741338647861,-3991.56,0.00019178,2]
[355592728,1741338647872,-500.0,0.00019178,2]
[355592729,1741338647885,-3713.78,0.00019178,2]
[355592730,1741338647895,-765.9,0.00019178,2]
[355592731,1741338647906,-500.0,0.00019178,2]
[355592732,1741338647918,-2200.32,0.00019178,2]
[355592733,1741338647928,-666.18,0.00019178,2]
[355592734,1741338647939,-326.22730064,0.00019178,2]
[355592735,1741338647949,-505.33404171,0.00019178,2]
[355592736,1741338647959,-500.0,0.00019178,2]
[355592737,1741338647971,-500.0,0.00019178,2]
[355592738,1741338647981,-4155.19,0.00019178,2]
[355592739,1741338647991,-628.85,0.00019178,2]
[355592740,1741338648002,-500.0,0.00019178,2]
[355592741,1741338648012,-780.24,0.00019178,2]
[355592742,1741338648025,-1879.67,0.00019178,2]
[355592743,1741338648037,-785.62,0.00019178,2]
[355592744,1741338648049,-1287.33,0.00019178,2]
[355592745,1741338648060,-573.51,0.00019178,2]
[355592746,1741338648071,-704.31,0.00019178,2]
[355592747,1741338648082,-545.01,0.00019178,2]
[355592748,1741338648093,-500.0,0.00019178,2]
[355592749,1741338648104,-500.0,0.00019178,2]
[355592750,1741338648115,-1845.17,0.00019178,2]
[355592751,1741338648125,-500.0,0.00019178,2]
[355592752,1741338648136,-512.91,0.00019178,2]
[355592753,1741338648146,-582.77,0.00019178,2]
[355592754,1741338648157,-4566.49,0.00019178,2]
[355592755,1741338648168,-500.0,0.00019178,2]
[355592756,1741338648180,-500.0,0.00019178,2]
[355592757,1741338648191,-1427.96,0.00019178,2]
[355592758,1741338648203,-500.0,0.00019178,2]
[355592759,1741338648216,-8183.45,0.00019178,2]
[355592760,1741338648227,-935.59,0.00019178,2]
[355592761,1741338648237,-1427.96,0.00019178,2]
[355592762,1741338648248,-1065.61,0.00019178,2]
[355592763,1741338648258,-500.0,0.00019178,2]
[355592764,1741338648268,-138346.39,0.00019178,2]
[355592765,1741338648282,-500.0,0.00019178,2]
[355592766,1741338648294,-500.0,0.00019178,2]
[355592767,1741338648304,-1379.72,0.00019178,2]
[355592768,1741338648315,-500.0,0.00019178,2]
[355592769,1741338648326,-3000.0,0.00019352,2]
[355592770,1741338648337,-500.0,0.0001944,2]
[355592771,1741338648348,-540.0,0.0001944,2]
[355592772,1741338648359,-583.2,0.0001944,2]
[355592773,1741338648370,-629.856,0.0001944,2]
[355592774,1741338648381,-680.24448,0.0001944,2]
[355592775,1741338648391,-734.6640384,0.0001944,2]
[355592776,1741338648402,-793.43716147,0.0001944,2]
[355592777,1741338648413,-856.91213439,0.0001944,2]
[355592778,1741338648424,-925.46510514,0.0001944,2]
[355592779,1741338648434,-1000.0,0.0001944,2]
[355592780,1741338648446,-500.0,0.00019452,2]
[355592781,1741338648457,-500.0,0.00019452,2]
[355592782,1741338648467,-500.0,0.00019452,2]
[355592783,1741338648478,-500.0,0.00019452,2]
[355592784,1741338648489,-629.46,0.00019452,2]
[355592785,1741338648500,-500.0,0.00019452,2]
[355592786,1741338648511,-778.81,0.00019452,2]
[355592787,1741338648522,-500.0,0.00019452,2]
[355592788,1741338648533,-500.0,0.00019452,2]
[355592789,1741338648544,-523.74,0.00019452,2]
[355592790,1741338648555,-500.0,0.00019452,2]
[355592791,1741338648566,-557.61,0.00019452,2]
[355592792,1741338648576,-524.52,0.00019452,2]
[355592793,1741338648587,-500.0,0.00019452,2]
[355592794,1741338648597,-500.0,0.00019452,2]
[355592795,1741338648610,-1170.95,0.00019452,2]
[355592796,1741338648620,-500.0,0.00019452,2]
[355592797,1741338648631,-571.7006721,0.00019452,2]
[355592798,1741338648642,-500.0,0.00019452,2]
[355592799,1741338648653,-548.64,0.00019452,3]
[355592800,1741338648663,-500.0,0.00019452,2]
[355592801,1741338648674,-500.0,0.00019452,2]
[355592802,1741338648685,-500.0,0.00019452,2]
[355592803,1741338648696,-500.0,0.00019452,2]
[355592804,1741338648707,-505.95,0.00019452,2]
[355592805,1741338648718,-569.98,0.00019452,2]
[355592806,1741338648730,-500.0,0.00019452,2]
[355592807,1741338648741,-500.0,0.00019452,2]
[355592808,1741338648751,-545.89,0.00019452,2]
[355592809,1741338648762,-500.0,0.00019452,2]
[355592810,1741338648773,-811.62,0.00019452,2]
[355592811,1741338648786,-579.13,0.00019452,2]
[355592812,1741338648797,-500.0,0.00019452,2]
[355592813,1741338648808,-689.98,0.00019452,2]
[355592814,1741338648818,-500.0,0.00019452,2]
[355592815,1741338648829,-554.59,0.00019452,2]
[355592816,1741338648839,-500.0,0.00019452,2]
[355592817,1741338648850,-1296.09,0.00019452,2]
[355592818,1741338648860,-500.0,0.00019452,2]
[355592819,1741338648870,-500.0,0.00019452,2]
[355592820,1741338648884,-1123.34,0.00019452,2]
[355592821,1741338648894,-500.0,0.00019452,2]
[355592822,1741338648904,-1220.99,0.00019452,2]
[355592823,1741338648914,-500.0,0.00019452,2]
[355592824,1741338648926,-519.68,0.00019452,2]
[355592825,1741338648937,-500.0,0.00019452,2]
[355592826,1741338648947,-948.01,0.00019452,2]
[355592827,1741338648959,-500.0,0.00019452,2]
[355592828,1741338648972,-500.0,0.00019452,2]
[355592829,1741338648983,-151.0,0.00019452,2]
[355592830,1741338648994,-500.0,0.00019452,2]
[355592831,1741338649004,-904.24,0.00019452,2]
[355592832,1741338649014,-585.09,0.00019452,2]
[355592833,1741338649024,-500.0,0.00019452,2]
[355592834,1741338649037,-651.11,0.00019452,2]
[355592835,1741338649047,-500.0,0.00019452,2]
[355592836,1741338649059,-500.0,0.00019452,2]
[355592837,1741338649069,-500.22,0.00019452,2]
[355592838,1741338649080,-79.88050998,0.00019452,2]
[355592840,1741338738144,-14847.68035898,0.00024,30]
[355592841,1741338738192,-464.93793375,0.00024701,120]
[355592842,1741338738245,-558.6455881,0.00028822,30]
[355592843,1741338738473,-9073.58067806,0.0003,60]
[355592844,1741338738499,-160.0,0.0003,120]
[355592845,1741338738523,-150.0,0.0003,60]
[355592846,1741338738548,-150.0,0.0003,60]
[355592847,1741338738574,-150.0,0.0003,60]
[355592848,1741338738597,-150.0,0.0003,60]
[355592849,1741338738622,-2725.0,0.0003,30]
[355592850,1741338738647,-558.6455881,0.00030384,30]
[355592851,1741338738671,-558.6455881,0.00030384,30]
[355592852,1741338738695,-600.0,0.000306,89]
[355592853,1741338738718,-1004.05782419,0.000306,89]
[355592854,1741338738742,-320.0833592,0.00031405,34]
[355592855,1741338738770,-40250.0,0.000318,120]
[355592856,1741338738795,-600.0,0.00032054,120]
[355592857,1741338738821,-208.81456216,0.000325,30]
[355592858,1741338738846,-556801.25016103,0.0003285,30]
[355592859,1741338738873,-500.0,0.00032876,120]
[355592860,1741338738899,-500.0,0.00032876,120]
[355592861,1741338738925,-500.0,0.00032876,120]
[355592862,1741338738951,-500.0,0.00032876,120]
[355592863,1741338738974,-500.0,0.00032876,120]
[355592864,1741338738998,-500.0,0.00032876,120]
[355592865,1741338739022,-234.48513942,0.00032876,120]
[355592866,1741338739049,-2038.50087576,0.000332,120]
[355592867,1741338739073,-1001.34386928,0.00033424,120]
[355592868,1741338739098,-600.0,0.0003395,119]
[355592869,1741338739125,-10000.0,0.00035,35]
[355592870,1741338739149,-150.0,0.00035,69]
[355592871,1741338739178,-1000.0,0.00035,120]
[355592872,1741338739204,-500.0,0.00035,30]
[355592873,1741338739233,-500.0,0.00035,30]
[355592874,1741338739257,-1000.0,0.00035,30]
[355592875,1741338739280,-47495.18020625,0.00035,60]
[355592876,1741338739304,-4846.0,0.00035,30]
[355592877,1741338739331,-164.1874792,0.00035068,30]
[355592878,1741338739360,-324.07,0.000357,30]
[355592879,1741338739387,-312.25,0.000357,30]
[355592880,1741338739412,-3993.38,0.00036,120]
[355592881,1741338739435,-1293.0,0.00036,30]
[355592882,1741338739460,-1915.01356654,0.000362,98]
[355592883,1741338739486,-324.07,0.000366,30]
[355592884,1741338739510,-312.25,0.000366,30]
[355592885,1741338739535,-1579.43,0.00036618,30]
[355592886,1741338739560,-150.0,0.000375,112]
[355592887,1741338739586,-312.25,0.000375,30]
[355592888,1741338739610,-558.6455881,0.00037534,30]
[355592889,1741338739635,-324.07,0.000376,30]
[355592890,1741338739660,-1000.0,0.00038,30]
[355592891,1741338739684,-1000.0,0.00038,30]
[355592892,1741338739708,-1000.0,0.00038,30]
[355592893,1741338739731,-100000.0,0.00038,120]
[355592894,1741338739755,-504.0,0.00038,30]
[355592895,1741338739779,-188.15,0.00038,120]
[355592896,1741338739803,-3196.32600296,0.00038,30]
[355592897,1741338739829,-466.84,0.000382,31]
[355592898,1741338739856,-466.84,0.000382,31]
[355592899,1741338739883,-466.84,0.000382,31]
[355592900,1741338739911,-466.84,0.000382,31]
[355592901,1741338739936,-466.84,0.000382,31]
[355592902,1741338739963,-466.84,0.000382,31]
[355592903,1741338739989,-466.84,0.000382,31]
[355592904,1741338740016,-466.84,0.000382,31]
[355592905,1741338740042,-466.84,0.000382,31]
[355592906,1741338740067,-466.84,0.000382,31]
[355592907,1741338740092,-466.84,0.000382,31]
[355592908,1741338740118,-466.84,0.000382,31]
[355592909,1741338740143,-312.25,0.000384,30]
[355592910,1741338740170,-324.07,0.000387,30]
[355592911,1741338740194,-247.69379,0.000388,120]
[355592912,1741338740218,-188.15,0.000388,120]
[355592913,1741338740243,-188.15,0.000388,120]
[355592914,1741338740268,-1221.00873856,0.00038989,36]
[355592915,1741338740292,-998.0,0.00039,120]
[355592916,1741338740316,-188.15,0.00039,120]
[355592917,1741338740340,-188.15,0.00039,120]
[355592918,1741338740365,-490.39975,0.000392,120]
[355592919,1741338740389,-201.9501,0.000394,120]
[355592920,1741338740413,-243.45072,0.000394,120]
[355592921,1741338740436,-200.0,0.000394,120]
[355592922,1741338740460,-312.25,0.000396,30]
[355592923,1741338740484,-324.07,0.000398,30]
[355592924,1741338740508,-2316.07742935,0.000399,120]
[355592925,1741338740532,-1915.01356654,0.000399,119]
[355592926,1741338740557,-10000.0,0.0004,40]
[355592927,1741338740581,-699.0,0.0004,120]
[355592928,1741338740607,-100068.8993,0.0004,120]
[355592929,1741338740631,-175977.65363457,0.0004,30]
[355592930,1741338740654,-199342.0466118,0.0004,30]
[355592931,1741338740680,-457610.09572476,0.0004,30]
[355592932,1741338740703,-146949.08297326,0.0004,30]
[355592933,1741338740728,-218.0,0.0004,120]
[355592934,1741338740750,-1000.0,0.0004,30]
[355592935,1741338740773,-500.0,0.0004,30]
[355592936,1741338740797,-340.0,0.0004,60]
[355592937,1741338740823,-337.0,0.0004,60]
[355592938,1741338740848,-49456.65930068,0.0004,30]
[355592939,1741338740874,-284.0,0.0004,120]
[355592940,1741338740897,-218.0,0.0004,120]
[355592941,1741338740924,-6404.0,0.0004,60]
[355592942,1741338740950,-1181.67066396,0.00040658,120]
[355592943,1741338740977,-312.25,0.000409,30]
[355592944,1741338741008,-466.84,0.000409,31]
[355592945,1741338741179,-466.84,0.000409,31]
[355592946,1741338741212,-466.84,0.000409,31]
[355592947,1741338741239,-466.84,0.000409,31]
[355592948,1741338741266,-466.84,0.000409,31]
[355592949,1741338741292,-466.84,0.000409,31]
[355592950,1741338741318,-466.84,0.000409,31]
[355592951,1741338741345,-466.84,0.000409,31]
[355592952,1741338741372,-466.84,0.000409,31]
[355592953,1741338741398,-466.84,0.000409,31]
[355592954,1741338741424,-466.84,0.000409,31]
[355592955,1741338741451,-466.84,0.000409,31]
[355592956,1741338741478,-466.84,0.000409,31]
[355592957,1741338741503,-466.84,0.000409,31]
[355592958,1741338741529,-466.84,0.000409,31]
[355592959,1741338741554,-466.84,0.000409,31]
[355592960,1741338741581,-466.84,0.000409,31]
[355592961,1741338741610,-466.84,0.000409,31]
[355592962,1741338741636,-466.84,0.000409,31]
[355592963,1741338741662,-466.84,0.000409,31]
[355592964,1741338741688,-466.84,0.000409,31]
[355592965,1741338741713,-466.84,0.000409,31]
[355592966,1741338741739,-466.84,0.000409,31]
[355592967,1741338741766,-466.84,0.000409,31]
[355592968,1741338741791,-401.46716807,0.00040944,40]
[355592969,1741338741815,-81957.28358811,0.00041,120]
[355592970,1741338741838,-500.0,0.00041,30]
[355592971,1741338741863,-500.0,0.00041095,120]
[355592972,1741338741887,-500.0,0.00041095,120]
[355592973,1741338741914,-500.0,0.00041095,120]
[355592974,1741338741938,-528.37027001,0.00041095,120]
[355592975,1741338741964,-221.75,0.00041095,30]
[355592976,1741338741988,-2614.24,0.00041095,120]
[355592977,1741338742014,-324.07,0.000411,30]
[355592978,1741338742038,-166.35,0.000411,120]
[355592979,1741338742062,-194.08146233,0.000411,120]
[355592980,1741338742086,-194.08,0.000411,120]
[355592981,1741338742110,-689.54022821,0.000411,120]
[355592982,1741338742134,-689.54022821,0.000411,120]
[355592983,1741338742157,-689.54022821,0.000411,120]
[355592984,1741338742181,-689.54022821,0.000411,120]
[355592985,1741338742204,-689.54022821,0.000411,120]
[355592986,1741338742227,-689.54022821,0.000411,120]
[355592987,1741338742251,-689.54022821,0.000411,120]
[355592988,1741338742274,-689.54022821,0.000411,120]
[355592989,1741338742298,-689.54022821,0.000411,120]
[355592990,1741338742321,-689.54022821,0.000411,120]
[355592991,1741338742345,-689.54022821,0.000411,120]
[355592992,1741338742369,-689.54022821,0.000411,120]
[355592993,1741338742392,-689.54022821,0.000411,120]
[355592994,1741338742416,-689.54022821,0.000411,120]
[355592995,1741338742439,-689.54022821,0.000411,120]
[355592996,1741338742462,-689.54022821,0.000411,120]
[355592997,1741338742486,-689.54022821,0.000411,120]
[355592998,1741338742508,-689.54022821,0.000411,120]
[355592999,1741338742532,-689.54022821,0.000411,120]
[355593000,1741338742556,-689.54,0.000411,120]
[355593001,1741338742580,-1608.92719916,0.000411,120]
[355593002,1741338742604,-1608.92719916,0.000411,120]
[355593003,1741338742627,-1608.92719916,0.000411,120]
[355593004,1741338742650,-1608.92719916,0.000411,120]
[355593005,1741338742673,-1608.92719916,0.000411,120]
[355593006,1741338742697,-1608.92719916,0.000411,120]
[355593007,1741338742721,-1608.92719916,0.000411,120]
[355593008,1741338742745,-1608.92719916,0.000411,120]
[355593009,1741338742768,-1608.92719916,0.000411,120]
[355593010,1741338742792,-1608.92719916,0.000411,120]
[355593011,1741338742815,-1608.92719916,0.000411,120]
[355593012,1741338742839,-1608.92719916,0.000411,120]
[355593013,1741338742863,-1608.92719916,0.000411,120]
[355593014,1741338742886,-1608.92719916,0.000411,120]
[355593015,1741338742909,-1608.92719916,0.000411,120]
[355593016,1741338742935,-1608.92719916,0.000411,120]
[355593017,1741338742960,-1608.92719916,0.000411,120]
[355593018,1741338742984,-1608.92719916,0.000411,120]
[355593019,1741338743009,-1608.92719916,0.000411,120]
[355593020,1741338743032,-1608.92,0.000411,120]
[355593021,1741338743056,-10000.0,0.000412,60]
[355593022,1741338743079,-2614.24,0.00041643,120]
[355593023,1741338743104,-390.69421,0.000417,120]
[355593024,1741338743127,-739.227283,0.000418,55]
[355593025,1741338743151,-500.0,0.000419,56]
[355593026,1741338743175,-650.0,0.00042,90]
[355593027,1741338743199,-150.0,0.00042,120]
[355593028,1741338743223,-5464.0,0.00042,120]
[355593029,1741338743247,-500.0,0.00042,57]
[355593030,1741338743269,-500.0,0.000421,58]
[355593031,1741338743293,-2614.24,0.00042191,120]
[355593032,1741338743317,-312.25,0.000422,30]
[355593033,1741338743339,-221.75,0.00042465,30]
[355593034,1741338743365,-2614.24,0.00042739,120]
[355593035,1741338743388,-324.07,0.000428,30]
[355593036,1741338743411,-5000.0,0.000429,120]
[355593037,1741338743436,-503.78322616,0.00043,30]
[355593038,1741338743460,-1000.0,0.000432,90]
[355593039,1741338743484,-1000.0,0.000432,90]
[355593040,1741338743508,-2614.24,0.00043287,120]
[355593041,1741338743536,-466.84,0.000436,36]
[355593042,1741338743563,-466.84,0.000436,36]
[355593043,1741338743590,-466.84,0.000436,36]
[355593044,1741338743616,-466.84,0.000436,36]
[355593045,1741338743642,-466.84,0.000436,36]
[355593046,1741338743668,-466.84,0.000436,36]
[355593047,1741338743694,-466.84,0.000436,36]
[355593048,1741338743719,-466.84,0.000436,36]
[355593049,1741338743870,-466.84,0.000436,36]
[355593050,1741338743908,-466.84,0.000436,36]
[355593051,1741338743938,-466.84,0.000436,36]
[355593052,1741338743965,-466.84,0.000436,36]
[355593053,1741338743991,-466.84,0.000436,36]
[355593054,1741338744018,-466.84,0.000436,36]
[355593055,1741338744043,-466.84,0.000436,36]
[355593056,1741338744069,-466.84,0.000436,36]
[355593057,1741338744096,-466.84,0.000436,36]
[355593058,1741338744127,-466.84,0.000436,36]
[355593059,1741338744153,-466.84,0.000436,36]
[355593060,1741338744180,-466.84,0.000436,36]
[355593061,1741338744207,-466.84,0.000436,36]
[355593062,1741338744233,-466.84,0.000436,36]
[355593063,1741338744259,-466.84,0.000436,36]
[355593064,1741338744285,-466.84,0.000436,36]
[355593065,1741338744309,-221.75,0.00043835,30]
[355593066,1741338744334,-2614.24,0.00043835,120]
[355593067,1741338744359,-200.0,0.00044,120]
[355593068,1741338744382,-252.25013762,0.00044,30]
[355593069,1741338744406,-5464.0,0.00044,120]
[355593070,1741338744430,-849.79,0.00044136,120]
[355593071,1741338744454,-849.79,0.00044136,120]
[355593072,1741338744478,-849.79,0.00044136,120]
[355593073,1741338744502,-849.79,0.00044136,120]
[355593074,1741338744526,-849.79,0.00044136,120]
[355593075,1741338744551,-849.79,0.00044136,120]
[355593076,1741338744575,-849.79,0.00044136,120]
[355593077,1741338744600,-849.79,0.00044136,120]
[355593078,1741338744626,-849.79,0.00044136,120]
[355593079,1741338744650,-849.79,0.00044136,120]
[355593080,1741338744675,-849.79,0.00044136,120]
[355593081,1741338744698,-849.79,0.00044136,120]
[355593082,1741338744721,-849.79,0.00044136,120]
[355593083,1741338744745,-849.79,0.00044136,120]
[355593084,1741338744768,-849.79,0.00044136,120]
[355593085,1741338744791,-849.79,0.00044136,120]
[355593086,1741338744815,-849.79,0.00044136,120]
[355593087,1741338744843,-849.79,0.00044136,120]
[355593088,1741338744867,-849.79,0.00044136,120]
[355593089,1741338744890,-849.79,0.00044136,120]
[355593090,1741338744914,-849.79,0.00044136,120]
[355593091,1741338744938,-849.79,0.00044136,120]
[355593092,1741338744962,-849.79,0.00044136,120]
[355593093,1741338744987,-850.00981972,0.00044136,120]
[355593094,1741338745014,-2614.24,0.00044383,120]
[355593095,1741338745037,-163.44623929,0.00044499,90]
[355593096,1741338745061,-324.07,0.000445,30]
[355593097,1741338745086,-1900.0,0.00044557,120]
[355593098,1741338745112,-1900.0,0.00044831,120]
[355593099,1741338745137,-1052.16672699,0.000449,120]
[355593100,1741338745164,-2614.24,0.00044931,120]
[355593101,1741338745190,-10000.0,0.00045,45]
[355593102,1741338745213,-1000.0,0.00045,120]
[355593103,1741338745236,-436.3814658,0.00045,120]
[355593104,1741338745260,-80082.40849427,0.00045,30]
[355593105,1741338745286,-10002.70001107,0.00045,120]
[355593106,1741338745312,-390068.0,0.00045,120]
[355593107,1741338745335,-4001.03199892,0.00045,90]
[355593108,1741338745362,-151.0,0.00045,120]
[355593109,1741338745385,-151.0,0.00045,120]
[355593110,1741338745409,-38833.0,0.00045,120]
[355593111,1741338745432,-180.0,0.00045,30]
[355593112,1741338745455,-2166.88904265,0.00045,60]
[355593113,1741338745479,-1900.0,0.00045105,120]
[355593114,1741338745503,-221.75,0.00045205,30]
[355593115,1741338745527,-1900.0,0.00045379,120]
[355593116,1741338745555,-2614.24,0.00045479,120]
[355593117,1741338745579,-8000.0,0.000455,120]
[355593118,1741338745603,-103822.2886449,0.000458,30]
[355593119,1741338745631,-33646.86219042,0.000459,120]
[355593120,1741338745655,-100000.0,0.000459,30]
[355593121,1741338745679,-1900.0,0.00045927,120]
[355593122,1741338745702,-1000.0,0.00046,120]
[355593123,1741338745727,-413.23980247,0.00046,120]
[355593124,1741338745752,-1000.0,0.00046,120]
[355593125,1741338745775,-5464.0,0.00046,120]
[355593126,1741338745799,-1472.43745443,0.00046,120]